fUSD/lending_fUSD_20251108
["ID","MTS","AMOUNT","RATE_DAILY","PERIOD"]
[393387877,1762570248223,-151.0,0.00017856,2]
[393387878,1762570248234,-151.0,0.00017856,2]
[393387879,1762570248244,-151.0,0.00017856,2]
[393387880,1762570248254,-151.0,0.00017856,2]
[393387881,1762570248263,-206.987867,0.00017856,2]
[393387882,1762570248272,-151.0,0.00017856,2]
[393387883,1762570248282,-151.0,0.00017856,2]
[393387884,1762570248293,-158.419118,0.00017856,2]
[393387885,1762570248303,-151.0,0.00017856,2]
[393387886,1762570248313,-151.0,0.00017856,2]
[393387887,1762570248325,-167.817533,0.00017856,2]
[393387888,1762570248335,-151.0,0.00017856,2]
[393387889,1762570248346,-151.0,0.00017856,2]
[393387890,1762570248356,-151.0,0.00017856,2]
[393387891,1762570248366,-151.0,0.00017856,2]
[393387892,1762570248377,-151.0,0.00017856,2]
[393387893,1762570248388,-155.159087,0.00017856,2]
[393387894,1762570248398,-151.0,0.00017856,2]
[393387895,1762570248407,-151.0,0.00017856,2]
[393387896,1762570248417,-151.0,0.00017856,2]
[393387897,1762570248427,-151.0,0.00017856,2]
[393387898,1762570248437,-151.0,0.00017856,2]
[393387899,1762570248448,-168.0,0.00017871,2]
[393387900,1762570248611,-166.51133722,0.00017871,2]
[393387901,1762570248621,-427.18736711,0.00017873,2]
[393387902,1762570248631,-501.13999788,0.00017873,2]
[393387903,1762570248642,-432.78038,0.00017873,2]
[393387904,1762570248651,-160.02237432,0.00017873,2]
[393387905,1762570248661,-498.94955084,0.00017873,2]
[393387906,1762570248671,-501.04587818,0.00017873,2]
[393387907,1762570248680,-520.61032876,0.00017873,2]
[393387908,1762570248690,-503.56274946,0.00017873,2]
[393387909,1762570248702,-461.45193771,0.00017873,2]
[393387910,1762570248711,-500.60272191,0.00017873,2]
[393387911,1762570248721,-500.0,0.00017873,2]
[393387912,1762570248731,-505.17431055,0.00017873,2]
[393387913,1762570248741,-155.25322022,0.00017873,2]
[393387914,1762570248751,-501.16136192,0.00017873,2]
[393387915,1762570248760,-500.0,0.00017873,2]
[393387916,1762570248770,-321.82817085,0.00017873,2]
[393387917,1762570248780,-500.70477868,0.00017873,2]
[393387918,1762570248790,-280.37541257,0.00017873,2]
[393387919,1762570248800,-501.32957581,0.00017873,2]
[393387920,1762570248810,-500.0,0.00017873,2]
[393387921,1762570248819,-500.88564117,0.00017873,2]
[393387922,1762570248829,-502.0549088,0.00017873,2]
[393387923,1762570248839,-500.72575964,0.00017873,2]
[393387924,1762570248848,-167.38931244,0.00017873,2]
[393387925,1762570248857,-500.0,0.00017873,2]
[393387926,1762570248868,-500.0,0.00017873,2]
[393387927,1762570248878,-501.25616349,0.00017873,2]
[393387928,1762570248888,-500.83104362,0.00017873,2]
[393387929,1762570248898,-330.9236167,0.00017873,2]
[393387930,1762570248908,-500.0,0.00017873,2]
[393387931,1762570248918,-500.0,0.00017873,2]
[393387932,1762570248927,-500.27370335,0.00017873,2]
[393387933,1762570248937,-501.30392983,0.00017873,2]
[393387934,1762570248947,-501.54420709,0.00017873,2]
[393387935,1762570248957,-500.0,0.00017873,2]
[393387936,1762570248966,-500.61631966,0.00017873,2]
[393387937,1762570248978,-165.80044005,0.00017873,2]
[393387938,1762570248988,-205.95929167,0.00017873,2]
[393387939,1762570248997,-500.0,0.00017873,2]
[393387940,1762570249007,-500.0,0.00017873,2]
[393387941,1762570249016,-4630.02251588,0.00017878,2]
[393387942,1762570249025,-5487.67299535,0.00017878,2]
[393387943,1762570249035,-183.174,0.00017878,2]
[393387944,1762570249044,-3238.969,0.00017878,2]
[393387945,1762570249054,-176.6942066,0.0001788,2]
[393387946,1762570249064,-218.0,0.00017883,2]
[393387947,1762570249074,-151.0,0.00017889,2]
[393387948,1762570249084,-158.270651,0.00017889,2]
[393387949,1762570249093,-151.0,0.00017889,2]
[393387950,1762570249102,-160.785293,0.00017889,2]
[393387951,1762570249112,-151.0,0.00017889,2]
[393387952,1762570249121,-222.068287,0.00017889,2]
[393387953,1762570249131,-154.95527,0.00017889,2]
[393387954,1762570249140,-151.0,0.00017889,2]
[393387955,1762570249149,-154.95527,0.00017889,2]
[393387956,1762570249159,-154.95527,0.00017889,2]
[393387957,1762570249168,-154.95527,0.00017889,2]
[393387958,1762570249178,-151.0,0.00017889,2]
[393387959,1762570249187,-165.60411,0.00017889,2]
[393387960,1762570249197,-151.0,0.00017889,2]
[393387961,1762570249206,-151.0,0.00017889,2]
[393387962,1762570249215,-151.0,0.00017889,2]
[393387963,1762570249224,-169.058999,0.00017889,2]
[393387964,1762570249235,-257.799912,0.00017889,2]
[393387965,1762570249244,-169.058999,0.00017889,2]
[393387966,1762570249255,-169.058999,0.00017889,2]
[393387967,1762570249265,-169.058999,0.00017889,2]
[393387968,1762570249275,-151.0,0.00017889,2]
[393387969,1762570249285,-151.0,0.00017889,2]
[393387970,1762570249294,-151.0,0.00017889,2]
[393387971,1762570249304,-151.0,0.00017889,2]
[393387972,1762570249314,-158.975496,0.00017889,2]
[393387973,1762570249323,-151.0,0.00017889,2]
[393387974,1762570249333,-152.620587,0.00017889,2]
[393387975,1762570249343,-151.0,0.00017889,2]
[393387976,1762570249352,-151.0,0.00017889,2]
[393387977,1762570249362,-151.0,0.00017889,2]
[393387978,1762570249372,-167.089914,0.00017889,2]
[393387979,1762570249381,-151.0,0.00017889,2]
[393387980,1762570249391,-151.0,0.00017889,2]
[393387981,1762570249401,-182.242707,0.00017889,2]
[393387982,1762570249410,-182.242707,0.00017889,2]
[393387983,1762570249419,-182.242707,0.00017889,2]
[393387984,1762570249428,-182.242707,0.00017889,2]
[393387985,1762570249439,-5561.2637405,0.00017894,2]
[393387986,1762570249449,-180.18288668,0.00017899,2]
[393387987,1762570249458,-584.01659396,0.00017899,2]
[393387988,1762570249468,-500.0,0.00017899,2]
[393387989,1762570249479,-504.71242223,0.00017899,2]
[393387990,1762570249488,-169.058999,0.00017899,2]
[393387991,1762570249498,-169.058999,0.00017899,2]
[393387992,1762570249508,-169.058999,0.00017899,2]
[393387993,1762570249518,-169.05899392,0.00017899,2]
[393387994,1762570249528,-156.447266,0.00017899,2]
[393387995,1762570249538,-151.0,0.00017899,2]
[393387996,1762570249548,-179.983764,0.00017899,2]
[393387997,1762570249558,-162.562838,0.00017899,2]
[393387998,1762570249568,-151.0,0.00017899,2]
[393387999,1762570249578,-571.26373129,0.00017899,2]
[393388000,1762570249588,-151.0,0.00017899,2]
[393388001,1762570249598,-151.0,0.00017899,2]
[393388002,1762570249607,-151.0,0.00017899,2]
[393388003,1762570249617,-151.0,0.00017899,2]
[393388004,1762570249626,-151.0,0.00017899,2]
[393388005,1762570249636,-182.242707,0.00017899,2]
[393388006,1762570249646,-182.242707,0.00017899,2]
[393388007,1762570249655,-182.242707,0.00017899,2]
[393388008,1762570249665,-182.242713,0.00017899,2]
[393388009,1762570249674,-500.0,0.00017899,2]
[393388010,1762570249684,-583.45476074,0.00017899,2]
[393388011,1762570249697,-150.49736311,0.00017899,2]
[393388012,1762570249707,-150.0,0.00017899,2]
[393388013,1762570249716,-500.0,0.00017899,2]
[393388014,1762570249725,-500.0,0.00017899,2]
[393388015,1762570249737,-500.0,0.00017899,2]
[393388016,1762570249746,-150.0,0.00017899,2]
[393388017,1762570249756,-500.0,0.00017899,2]
[393388018,1762570249765,-500.0,0.00017899,2]
[393388019,1762570249777,-150.0,0.00017899,2]
[393388020,1762570249787,-500.0,0.00017899,2]
[393388021,1762570249796,-150.0,0.00017899,2]
[393388022,1762570249805,-150.50128207,0.00017899,2]
[393388023,1762570249816,-500.0,0.00017899,2]
[393388024,1762570249826,-150.0,0.00017899,2]
[393388025,1762570249836,-150.0,0.00017899,2]
[393388026,1762570249846,-500.0,0.00017899,2]
[393388027,1762570249856,-150.0,0.00017899,2]
[393388028,1762570249867,-500.0,0.00017899,2]
[393388029,1762570249878,-507.44019334,0.00017899,2]
[393388030,1762570249888,-500.0,0.00017899,2]
[393388031,1762570249897,-150.0,0.00017899,2]
[393388032,1762570249907,-258.77965988,0.00017899,2]
[393388033,1762570249916,-500.0,0.00017899,2]
[393388034,1762570249926,-500.0,0.00017899,2]
[393388035,1762570249936,-500.0,0.00017899,2]
[393388036,1762570249945,-150.0,0.00017899,2]
[393388037,1762570249955,-150.0,0.00017899,2]
[393388038,1762570249965,-500.0,0.00017899,2]
[393388039,1762570249974,-150.0,0.00017899,2]
[393388040,1762570249985,-500.0,0.00017899,2]
[393388041,1762570249994,-500.0,0.00017899,2]
[393388042,1762570250004,-150.0,0.00017899,2]
[393388043,1762570250015,-150.0,0.00017899,2]
[393388044,1762570250025,-500.0,0.00017899,2]
[393388045,1762570250035,-500.0,0.00017899,2]
[393388046,1762570250044,-1000.0,0.00017899,2]
[393388047,1762570250053,-1000.0,0.00017899,2]
[393388048,1762570250063,-589.761,0.00017899,2]
[393388049,1762570250073,-500.0,0.00017899,2]
[393388050,1762570250082,-500.0,0.00017899,2]
[393388051,1762570250092,-500.0,0.00017899,2]
[393388052,1762570250101,-500.0,0.00017899,2]
[393388053,1762570250111,-173.38582037,0.00017899,2]
[393388054,1762570250120,-169.26293852,0.00017899,2]
[393388055,1762570250130,-500.0,0.00017899,2]
[393388056,1762570250139,-500.0,0.00017899,2]
[393388057,1762570250148,-151.7722355,0.00017899,2]
[393388058,1762570250157,-500.0,0.00017899,2]
[393388059,1762570250167,-151.0,0.000179,2]
[393388060,1762570250176,-151.0,0.000179,2]
[393388061,1762570250185,-151.0,0.000179,2]
[393388062,1762570250194,-163.469832,0.000179,2]
[393388063,1762570250203,-151.0,0.000179,2]
[393388064,1762570250212,-156.251921,0.000179,2]
[393388065,1762570250222,-151.0,0.000179,2]
[393388066,1762570250233,-369.81660305,0.000179,2]
[393388067,1762570250242,-152.958493,0.000179,2]
[393388068,1762570250252,-151.0,0.000179,2]
[393388069,1762570250262,-252.659064,0.000179,2]
[393388070,1762570250271,-151.0,0.000179,2]
[393388071,1762570250281,-155.492687,0.000179,2]
[393388072,1762570250290,-151.0,0.000179,2]
[393388073,1762570250299,-151.0,0.000179,2]
[393388074,1762570250309,-155.412626,0.000179,2]
[393388075,1762570250318,-151.0,0.000179,2]
[393388076,1762570250328,-153.000369,0.000179,2]
[393388077,1762570250337,-151.0,0.000179,2]
[393388078,1762570250347,-151.0,0.000179,2]
[393388079,1762570250356,-295.38846,0.000179,2]
[393388080,1762570250367,-151.0,0.000179,2]
[393388081,1762570250376,-151.0,0.000179,2]
[393388082,1762570250386,-151.0,0.000179,2]
[393388083,1762570250396,-160.055141,0.000179,2]
[393388084,1762570250405,-151.0,0.000179,2]
[393388085,1762570250415,-151.0,0.000179,2]
[393388086,1762570250424,-151.0,0.000179,2]
[393388087,1762570250434,-151.0,0.000179,2]
[393388088,1762570250443,-151.0,0.000179,2]
[393388089,1762570250452,-151.0,0.000179,2]
[393388090,1762570250462,-151.0,0.000179,2]
[393388091,1762570250471,-250.001272,0.000179,2]
[393388092,1762570250483,-151.0,0.000179,2]
[393388093,1762570250493,-151.0,0.000179,2]
[393388094,1762570250503,-151.0,0.000179,2]
[393388095,1762570250513,-154.808788,0.000179,2]
[393388096,1762570250522,-150.0,0.000179,2]
[393388097,1762570250531,-150.0,0.000179,2]
[393388098,1762570250541,-150.0,0.000179,2]
[393388099,1762570250551,-150.0,0.000179,2]
[393388100,1762570250560,-150.0,0.000179,2]
[393388101,1762570250570,-150.0,0.000179,2]
[393388102,1762570250579,-155.86790822,0.000179,2]
[393388103,1762570250589,-5000.0,0.000179,2]
[393388104,1762570250598,-252.80347595,0.000179,2]
[393388105,1762570250607,-500.0,0.000179,2]
[393388106,1762570250616,-150.0,0.000179,2]
[393388107,1762570250625,-150.0,0.000179,2]
[393388108,1762570250635,-151.0,0.000179,2]
[393388109,1762570250645,-150.0,0.000179,2]
[393388110,1762570250654,-151.0,0.000179,2]
[393388111,1762570250663,-153.660482,0.000179,2]
[393388112,1762570250673,-150.0,0.000179,2]
[393388113,1762570250682,-150.0,0.000179,2]
[393388114,1762570250692,-150.0,0.000179,2]
[393388115,1762570250705,-150.0,0.000179,2]
[393388116,1762570250715,-156.412736,0.000179,2]
[393388117,1762570250725,-150.0,0.000179,2]
[393388118,1762570250735,-150.0,0.000179,2]
[393388119,1762570250746,-151.0,0.000179,2]
[393388120,1762570250755,-151.0,0.000179,2]
[393388121,1762570250765,-178.315269,0.000179,2]
[393388122,1762570250779,-151.0,0.000179,2]
[393388123,1762570250789,-151.0,0.000179,2]
[393388124,1762570250799,-151.0,0.000179,2]
[393388125,1762570250809,-718.0,0.000179,2]
[393388126,1762570250819,-151.0,0.000179,2]
[393388127,1762570250828,-151.0,0.000179,2]
[393388128,1762570250837,-151.0,0.000179,2]
[393388129,1762570250847,-151.0,0.000179,2]
[393388130,1762570250856,-154.783419,0.000179,2]
[393388131,1762570250866,-151.0,0.000179,2]
[393388132,1762570250875,-217.428652,0.000179,2]
[393388133,1762570250885,-151.0,0.000179,2]
[393388134,1762570250894,-154.349848,0.000179,2]
[393388135,1762570250905,-261.116533,0.000179,2]
[393388136,1762570250915,-151.0,0.000179,2]
[393388137,1762570250924,-151.0,0.000179,2]
[393388138,1762570250933,-151.0,0.000179,2]
[393388139,1762570250944,-151.0,0.000179,2]
[393388140,1762570250953,-168.604519,0.000179,2]
[393388141,1762570250964,-151.0,0.000179,2]
[393388142,1762570250974,-151.0,0.000179,2]
[393388143,1762570250985,-151.0,0.000179,2]
[393388144,1762570250995,-153.505523,0.000179,2]
[393388145,1762570251007,-151.0,0.000179,2]
[393388146,1762570251018,-151.0,0.000179,2]
[393388147,1762570251029,-151.0,0.000179,2]
[393388148,1762570251039,-157.352874,0.000179,2]
[393388149,1762570251049,-151.0,0.000179,2]
[393388150,1762570251059,-154.793135,0.000179,2]
[393388151,1762570251069,-151.0,0.000179,2]
[393388152,1762570251079,-158.223595,0.000179,2]
[393388153,1762570251089,-151.0,0.000179,2]
[393388154,1762570251099,-151.0,0.000179,2]
[393388155,1762570251110,-151.0,0.000179,2]
[393388156,1762570251263,-151.0,0.000179,2]
[393388157,1762570251275,-151.0,0.000179,2]
[393388158,1762570251286,-295.228275,0.000179,2]
[393388159,1762570251297,-155.399336,0.000179,2]
[393388160,1762570251307,-152.600022,0.000179,2]
[393388161,1762570251317,-222.068287,0.000179,2]
[393388162,1762570251327,-222.068287,0.000179,2]
[393388163,1762570251336,-222.068293,0.000179,2]
[393388164,1762570251346,-154.95527,0.000179,2]
[393388165,1762570251356,-154.95527,0.000179,2]
[393388166,1762570251366,-154.95527,0.000179,2]
[393388167,1762570251376,-151.0,0.000179,2]
[393388168,1762570251386,-158.50485,0.000179,2]
[393388169,1762570251395,-154.95527,0.000179,2]
[393388170,1762570251404,-154.95527,0.000179,2]
[393388171,1762570251414,-154.95527,0.000179,2]
[393388172,1762570251424,-154.95527,0.000179,2]
[393388173,1762570251433,-154.95527,0.000179,2]
[393388174,1762570251443,-154.95527,0.000179,2]
[393388175,1762570251453,-154.95527,0.000179,2]
[393388176,1762570251463,-154.95527,0.000179,2]
[393388177,1762570251473,-154.955268,0.000179,2]
[393388178,1762570251484,-168.116196,0.000179,2]
[393388179,1762570251493,-151.0,0.000179,2]
[393388180,1762570251503,-151.0,0.000179,2]
[393388181,1762570251512,-151.0,0.000179,2]
[393388182,1762570251522,-151.0,0.000179,2]
[393388183,1762570251531,-151.0,0.000179,2]
[393388184,1762570251540,-151.0,0.000179,2]
[393388185,1762570251551,-151.0,0.000179,2]
[393388186,1762570251561,-151.0,0.000179,2]
[393388187,1762570251570,-151.0,0.000179,2]
[393388188,1762570251579,-5487.67299535,0.000179,2]
[393388189,1762570251589,-4100.0,0.000179,6]
[393388190,1762570251599,-166.51133722,0.000179,2]
[393388191,1762570251609,-4630.02251588,0.000179,2]
[393388192,1762570251619,-199.65294623,0.00017914,2]
[393388193,1762570251629,-336.0,0.00017932,2]
[393388194,1762570251639,-168.0,0.00017949,2]
[393388195,1762570251648,-366.87694461,0.00017967,2]
[393388196,1762570251658,-370.0,0.00017987,2]
[393388197,1762570251668,-336.0,0.00017993,2]
[393388198,1762570251678,-300.0,0.00017999,2]
[393388199,1762570251688,-500.0,0.00017999,2]
[393388200,1762570251701,-471.67682245,0.00017999,2]
[393388201,1762570251711,-300.0,0.00017999,2]
[393388202,1762570251720,-526.38545751,0.00017999,2]
[393388203,1762570251730,-1361408.39348143,0.00018,2]
[393388204,1762570251958,-992.4851007,0.00018,2]
[393388205,1762570252105,-500.0,0.00017744,2]
[393388206,1762570252114,-151.0,0.00017744,2]
[393388207,1762570252125,-500.0,0.00017799,2]
[393388208,1762570252135,-151.0,0.00017799,2]
[393388209,1762570252145,-58.80512659,0.00017799,2]
[393388210,1762570252156,-92.19487341,0.00017799,2]
[393388211,1762570252166,-151.0,0.00017799,2]
[393388212,1762570252180,-500.0,0.00017799,2]
[393388213,1762570252190,-500.0,0.00017799,2]
[393388214,1762570252200,-500.0,0.00017799,2]
[393388215,1762570252211,-500.0,0.000178,2]
[393388216,1762570252220,-151.0,0.000178,2]
[393388217,1762570252232,-981.67322753,0.00018,2]
[393388218,1762570252245,-5164.8,0.00018,2]
[393388219,1762570252261,-1395.45459987,0.00018,2]
[393388220,1762570252273,-241429.90520591,0.00018,2]
[393388221,1762570252669,-1.7e-07,0.00017799,2]
[393388222,1762570252681,-150.99999983,0.00017799,2]
[393388223,1762570252693,-500.0,0.000178,2]
[393388224,1762570252705,-3308510.28358299,0.00018,2]
[393388225,1762570252715,-196.97988899,0.00018,2]
[393388226,1762570252725,-1094422.03176649,0.00018,2]
[393388227,1762570252740,-651.0,0.00018,2]
[393388228,1762570252751,-1475.54920302,0.00018,2]
[393388229,1762570252765,-1163.85604847,0.00018,2]
[393388230,1762570252924,-500.0,0.00017744,2]
[393388231,1762570252934,-166.551215,0.00017744,2]
[393388232,1762570252943,-471.069462,0.00017744,2]
[393388233,1762570252952,-1287.93095339,0.00017744,2]
[393388234,1762570252967,-122.19645361,0.00017744,2]
[393388235,1762570252974,-301.184529,0.00017799,2]
[393388236,1762570252983,-500.0,0.00017799,2]
[393388237,1762570252994,-500.0,0.00017799,2]
[393388238,1762570253004,-500.0,0.00017799,2]
[393388239,1762570253014,-166.551215,0.00017799,2]
[393388240,1762570253023,-471.069462,0.00017799,2]
[393388241,1762570253033,-166.551215,0.00017799,2]
[393388242,1762570253043,-166.551215,0.00017799,2]
[393388243,1762570253053,-471.069462,0.00017799,2]
[393388244,1762570253064,-1410.127407,0.00017799,2]
[393388245,1762570253074,-500.0,0.000178,2]
[393388246,1762570253084,-166.551215,0.000178,2]
[393388247,1762570253094,-7778.98236748,0.00018,2]
[393388248,1762570253106,-1068.85464755,0.00018,2]
[393388249,1762570253732,-166.551215,0.00017744,2]
[393388250,1762570253743,-471.069462,0.00017744,2]
[393388251,1762570253754,-1410.127407,0.00017744,2]
[393388252,1762570253764,-471.069462,0.00017744,2]
[393388253,1762570253775,-166.551215,0.00017744,2]
[393388254,1762570253784,-247.96637931,0.00017798,2]
[393388255,1762570253794,-471.069462,0.00017799,2]
[393388256,1762570253803,-650.57688871,0.00017799,2]
[393388257,1762570253825,-306.75192628,0.00017744,2]
[393388258,1762570253838,-1103.37548072,0.00017744,2]
[393388259,1762570253849,-759.55051829,0.00017799,2]
[393388260,1762570253859,-1410.127407,0.00017799,2]
[393388261,1762570253870,-166.551215,0.00017799,2]
[393388262,1762570253880,-471.069462,0.00017799,2]
[393388263,1762570253891,-471.069462,0.00017799,2]
[393388264,1762570253903,-166.551215,0.00017799,2]
[393388265,1762570253913,-471.069462,0.00017799,2]
[393388266,1762570253923,-1410.127407,0.00017799,2]
[393388267,1762570253933,-166.551215,0.00017799,2]
[393388268,1762570253943,-1410.127407,0.00017799,2]
[393388269,1762570253953,-1410.127407,0.00017799,2]
[393388270,1762570253963,-471.069462,0.00017799,2]
[393388271,1762570253973,-471.069462,0.00017799,2]
[393388272,1762570253982,-166.551215,0.00017799,2]
[393388273,1762570253993,-471.069462,0.00017799,2]
[393388274,1762570254003,-471.069462,0.000178,2]
[393388275,1762570254013,-1410.127407,0.000178,2]
[393388276,1762570254022,-471.069462,0.000178,2]
[393388277,1762570254032,-166.551215,0.000178,2]
[393388278,1762570254042,-1410.127407,0.000178,2]
[393388279,1762570254052,-451.51437594,0.00017899,2]
[393388280,1762570254062,-500.0,0.00017899,2]
[393388281,1762570254071,-7592.3124098,0.00018,2]
[393388282,1762570254084,-262.03301266,0.00018,2]
[393388283,1762570254097,-2159.85660827,0.00018,2]
[393388284,1762570364503,500.0,0.00039097,120]
[393388285,1762570365688,-227.08,0.00017033,2]
[393388286,1762570365710,-24.6085548,0.000175,6]
[393388287,1762570368140,-214.9093592,0.000175,6]
[393388288,1762570369588,-369.366768,0.000175,6]
[393388289,1762570374275,-206.8342872,0.000175,6]
[393388290,1762570395516,-160.21090965,0.0001695,2]
[393388291,1762570397608,-193.68201102,0.0001695,2]
[393388292,1762570398999,-146.10707933,0.0001695,2]
[393388293,1762570399022,-60.79292067,0.000175,6]
[393388294,1762570425528,-23.48811013,0.000175,6]
[393388295,1762570425552,-179.84866091,0.000176,6]
[393388296,1762570429464,-344.49787618,0.000176,6]
[393388297,1762570431465,-180.43313349,0.000176,6]
[393388298,1762570433471,-614.42206076,0.000176,6]
[393388299,1762570437148,-283.21633046,0.00017472,2]
[393388300,1762570439197,-464.39129279,0.00017472,2]
[393388301,1762570455564,-253.17005046,0.00017309,2]
[393388302,1762570473019,500.0,0.00039098,120]
[393388304,1762570606075,373.0,0.00030137,120]
[393388307,1762570654900,359.04,0.00013699,2]
[393388308,1762570700036,194.14226602,0.00039098,120]
[393388311,1762570938039,575.96,0.00039095,120]
[393388312,1762571097634,258.77965987,0.00039096,30]
[393388317,1762571432014,-150.0,0.00016538,2]
[393388318,1762571432025,-999.0,0.00016553,3]
[393388319,1762571432035,-1200.0,0.00016752,2]
[393388320,1762571432046,-3310.48,0.00016752,2]
[393388321,1762571432058,-626.40951003,0.00016753,2]
[393388322,1762571432068,-250.0,0.00016753,2]
[393388323,1762571432078,-1000.0,0.00016765,2]
[393388324,1762571432090,-300.0,0.00016775,2]
[393388325,1762571432102,-300.0,0.00016775,2]
[393388326,1762571432112,-11203.61,0.00016788,2]
[393388327,1762571432122,-152.83,0.0001679,2]
[393388328,1762571432133,-1117.62,0.00016799,2]
[393388329,1762571432143,-14919.84772574,0.00017052,2]
[393388330,1762571432153,-4276.82994954,0.00017309,2]
[393388331,1762571432164,-4530.0,0.00017333,2]
[393388332,1762571432174,-3782.39237675,0.00017472,2]
[393388333,1762571432189,-150.0,0.000175,2]
[393388334,1762571432199,-2000.0,0.000175,6]
[393388335,1762571432210,-17997.78896144,0.00017532,2]
[393388336,1762571432220,-300.0,0.00017599,2]
[393388337,1762571432230,-1000.0,0.000176,2]
[393388338,1762571432241,-1575.6357,0.000176,2]
[393388339,1762571432252,-1000.0,0.000176,2]
[393388340,1762571432262,-2206.8805,0.000176,2]
[393388341,1762571432272,-7708.15451822,0.000176,2]
[393388342,1762571432282,-150.0,0.000176,2]
[393388343,1762571432292,-150.0,0.000176,2]
[393388344,1762571432302,-4000.0,0.000176,6]
[393388345,1762571432312,-201.87533056,0.00017665,2]
[393388346,1762571432322,-2177.5546,0.00017671,2]
[393388347,1762571432332,-501.29728882,0.00017673,2]
[393388348,1762571432342,-500.0,0.00017673,2]
[393388349,1762571432352,-500.31492384,0.00017673,2]
[393388350,1762571432362,-501.80142491,0.00017673,2]
[393388351,1762571432372,-501.12226289,0.00017673,2]
[393388352,1762571432382,-93627.49636507,0.00017674,2]
[393388355,1762571432443,-370.58127462,0.00017674,2]
[393388356,1762571432494,-60730.69400622,0.00017674,2]
[393388357,1762571432505,-893.85465609,0.00017679,2]
[393388358,1762571432515,-151.0,0.00017689,2]
[393388360,1762571432529,-151.0,0.00017689,2]
[393388361,1762571432541,-151.0,0.00017689,2]
[393388362,1762571432556,-151.0,0.00017689,2]
[393388363,1762571432566,-151.0,0.00017689,2]
[393388364,1762571432577,-151.0,0.00017689,2]
[393388365,1762571432588,-151.0,0.00017689,2]
[393388366,1762571432598,-151.0,0.00017689,2]
[393388367,1762571432609,-151.0,0.00017689,2]
[393388368,1762571432619,-151.0,0.00017689,2]
[393388369,1762571432630,-151.0,0.00017689,2]
[393388370,1762571432642,-151.0,0.00017689,2]
[393388371,1762571432652,-151.0,0.00017689,2]
[393388372,1762571432663,-151.0,0.00017689,2]
[393388373,1762571432673,-151.0,0.00017689,2]
[393388374,1762571432683,-151.0,0.00017689,2]
[393388375,1762571432693,-151.0,0.00017689,2]
[393388376,1762571432704,-151.0,0.00017689,2]
[393388377,1762571432714,-151.0,0.00017689,2]
[393388378,1762571432725,-151.0,0.00017689,2]
[393388379,1762571432735,-151.0,0.00017697,2]
[393388380,1762571432746,-500.0,0.00017697,2]
[393388381,1762571432756,-500.0,0.00017697,2]
[393388382,1762571432766,-500.0,0.00017697,2]
[393388383,1762571432776,-500.0,0.00017697,2]
[393388384,1762571432786,-500.0,0.00017697,2]
[393388385,1762571432796,-500.0,0.00017697,2]
[393388386,1762571432807,-500.0,0.00017697,2]
[393388387,1762571432817,-500.0,0.00017697,2]
[393388388,1762571432827,-500.0,0.00017697,2]